Cogmind - Beta 15 @@@ ROGUE MODE // 2025.08.20 @ 14:18:07 Player: Minty Result: Destroyed by Y-72 Warden with Railgun Performance ------------- Evolutions (9) 4500 Regions Visited (18) 3600 Robots Destroyed (290) 1450 Value Destroyed (17182) 17182 Prototype IDs (30) 600 Alien Tech Used (0) 0 Bonus (12301) 12301 TOTAL SCORE: 39633 Bonus ------- High Alert Combat Kills 7180 Follower Combat Kills 2335 Entered Garrisons 800 Used RIF Installer 2000 Entered DSFs 500 Friendly Fire -514 Cogmind --------- Core Integrity 0/1600 Matter 285/300 Energy 699/700 System Corruption 44% Temperature Cool (0) Movement Core (50) Location -1/Access Parts ------- > --- POWER (3) -------- (None) > --- PROPULSION (5) --- Armored Heavy Treads > --- UTILITY (15) ----- Experimental Energy Well Advanced Targeting Computer Advanced Targeting Computer Advanced Targeting Computer Advanced Target Analyzer Relay Coupler [NC] (32) Relay Coupler [Sentry] (28) > --- WEAPON (2) ------- (None) > --- INVENTORY (5) ---- Reinforced Quantum Reactor Peak State ------------ > --- POWER ------------ Quantum Reactor Light Quantum Reactor Reinforced Quantum Reactor > --- PROPULSION ------- Biometal Medium Treads Centrium Heavy Treads Enhanced Armored Heavy Treads > --- UTILITY ---------- Advanced Heat Sink Advanced Heat Sink Advanced Heat Sink Advanced Heat Sink Huge Storage Unit Experimental Energy Well Advanced Targeting Computer Advanced Targeting Computer Particle Accelerator Advanced Powered Armor Advanced Powered Armor Advanced Powered Armor Advanced Powered Armor Advanced Powered Armor Advanced Powered Armor > --- WEAPON ----------- Enhanced Nova Cannon Enhanced Nova Cannon > --- INVENTORY -------- Particle Reactor Reinforced Quantum Reactor Biometal Medium Treads Biometal Medium Treads Armored Heavy Treads Armored Heavy Treads Energy Well Advanced Phase Shifter Relay Coupler [NC] Relay Coupler [Grunt] Relay Coupler [Hunter] Relay Coupler [Proto] Relay Coupler [Proto] Relay Coupler [Proto] Relay Coupler [Proto] Precision Phase Gun Enhanced Hardcell Cannon Enhanced Hardcell Cannon Enhanced Hardcell Cannon Micro-nuke Launcher Micro-nuke Launcher Advanced Remote Datajack Advanced Remote Datajack [Rating: 202] Favorites ----------- Power Light Quantum Reactor Engine Improved Deuterium Engine Power Core Enhanced Nuclear Core Reactor Light Quantum Reactor Propulsion Combat Airjet Treads Armored Heavy Treads Leg Carbon-fiber Leg Hover Unit Combat Airjet Flight Unit Impulse Thruster Utility Advanced Heat Sink Device Advanced Heat Sink Storage Huge Storage Unit Processor Advanced Targeting Computer Hackware Relay Coupler [Grunt] Protection Advanced Powered Armor Weapon Enhanced Nova Cannon Energy Gun Precision Phase Gun Energy Cannon Enhanced Nova Cannon Ballistic Gun Shotgun Ballistic Cannon Bore Cannon Launcher Micro-nuke Launcher Special Weapon Improved Remote Datajack Build | -11 -10 -10 -9 -8 -7 -7 -6 -5 -5 -5 -4 -4 -3 -2 -2 -1 -1 -1 ------- Run | Yrd Mat Min Mat Mat Fac Gar Fac Fac Gar Fac Fac Gar Res Res DSF Acc Gar Acc Slots Evolved 18 | . . . 2 2 2 . 2 2 . . 2 . 2 2 . 2 . . Power 2 | . . . . . . . . . . . 1 . 1 . . . . . Propulsion 3 | . . . 1 . 1 . . 1 . . . . . . . . . . Utility 13 | . . . 1 2 1 . 2 1 . . 1 . 1 2 . 2 . . Weapon . | . . . . . . . . . . . . . . . . . . . Parts Attached 334 | . 9 3 10 5 17 23 17 9 11 16 22 45 6 . 9 31 71 30 Power 42 | . 1 . 1 . 3 3 1 . . 3 1 6 2 . 3 3 12 3 Engine 4 | . 1 . . . . 2 . . . . . . . . . . 1 . Core 12 | . . . 1 . 3 1 1 . . 3 . 2 1 . . . . . Reactor 26 | . . . . . . . . . . . 1 4 1 . 3 3 11 3 Propulsion 86 | . 4 2 5 . . 11 6 2 5 3 7 10 . . . 7 13 11 Treads 24 | . . . . . . 1 1 . . 1 2 4 . . . 6 7 2 Leg 42 | . 4 . . . . 8 5 2 . 1 3 5 . . . 1 6 7 Wheel . | . . . . . . . . . . . . . . . . . . . Hover 14 | . . 2 2 . . 2 . . 5 1 1 1 . . . . . . Flight 6 | . . . 3 . . . . . . . 1 . . . . . . 2 Utility 156 | . 2 1 2 4 8 5 7 5 5 8 9 23 1 . 3 18 41 14 Device 60 | . 2 1 . 1 3 2 3 . 1 2 5 8 1 . 2 9 15 5 Storage 11 | . . . 1 . . . . 1 . 2 . . . . 1 3 3 . Processor 24 | . . . 1 . 1 . . 2 1 2 2 . . . . 5 3 7 Hackware 35 | . . . . 1 . . 4 . 1 2 2 13 . . . . 12 . Protection 26 | . . . . 2 4 3 . 2 2 . . 2 . . . 1 8 2 Artifact . | . . . . . . . . . . . . . . . . . . . Weapon 50 | . 2 . 2 1 6 4 3 2 1 2 5 6 3 . 3 3 5 2 Energy Gun 9 | . . . . . 4 . 1 1 . . . . . . . 1 2 . Energy Cannon 10 | . . . . . . 2 . . . . 1 2 2 . 3 . . . Ballistic Gun 14 | . 2 . 2 . 1 . . . 1 1 4 . . . . . 1 2 Ballistic Cannon 4 | . . . . . 1 . . 1 . 1 . . . . . . 1 . Launcher 8 | . . . . 1 . 2 1 . . . . 2 1 . . 1 . . Special Weapon 5 | . . . . . . . 1 . . . . 2 . . . 1 1 . Impact Weapon . | . . . . . . . . . . . . . . . . . . . Slashing Weapon . | . . . . . . . . . . . . . . . . . . . Piercing Weapon . | . . . . . . . . . . . . . . . . . . . Special Melee Weapon . | . . . . . . . . . . . . . . . . . . . Unidentified Prototypes 26 | . . 1 1 . 5 . 3 1 . 1 . . 1 . . 4 8 1 Corrupted Parts 4 | . . . . . . . . . . . . 3 . . . 1 . . System Corruption 17 | . . . . . . . . . . . . 12 . . . 5 . . Parts Lost 140 | . . . . . 7 10 5 6 . 18 14 7 . . . 11 38 24 Power 16 | . . . . . 2 1 . . . 3 1 . . . . 2 5 2 Propulsion 38 | . . . . . . 5 4 2 . 6 4 1 . . . . 8 8 Utility 65 | . . . . . 4 4 1 3 . 5 5 5 . . . 9 19 10 Weapon 21 | . . . . . 1 . . 1 . 4 4 1 . . . . 6 4 Highest Loss Streak 13 | . . . . . 3 9 2 3 . 9 7 3 . . . 5 13 6 To Critical Strikes 4 | . . . . . . . . . . . 1 . . . . . 2 1 Average Backups 11 | . 7 8 8 12 14 13 14 13 14 6 3 4 4 5 5 9 19 14 Power . | . . . . . 1 . 1 1 2 1 . . . 1 1 . 1 . Propulsion 1 | . 3 2 4 5 2 . . 1 1 . . . . . . 3 4 2 Utility 5 | . 1 4 3 5 6 5 7 4 5 2 1 3 1 1 1 2 9 10 Weapon 2 | . 1 2 1 1 3 5 5 4 4 1 1 . 3 2 2 2 3 . Tool/Special . | . . . . . . . . . . . . . . . . . . . Unused Backups 48 | . 10 3 4 . 2 4 3 . . 5 2 1 . . . 1 5 8 Power 4 | . 2 . . . . . 2 . . . . . . . . . . . Propulsion 9 | . 4 2 1 . 1 . . . . . . . . . . . 1 . Utility 23 | . . 1 3 . 1 2 1 . . 3 1 1 . . . 1 1 8 Weapon 11 | . 4 . . . . 2 . . . 1 1 . . . . . 3 . Tool/Special 1 | . . . . . . . . . . 1 . . . . . . . . Average Slot Usage (%) 87 | . 99 100 98 95 98 98 96 89 98 88 63 81 80 78 85 90 83 79 Engine 1 | . 14 14 8 . . 5 4 . . . . . . . . . . . Core 1 | . . . 2 9 6 1 1 4 5 4 . 1 . 4 . . . . Reactor 6 | . . . . . . . . . . . 1 8 9 8 12 11 11 10 Treads 6 | . . . . . . . . . . . 4 12 14 13 13 17 10 2 Leg 6 | . 28 13 . . . 21 23 26 5 . 5 1 . . . . . 10 Hover 5 | . . 14 30 27 30 7 . . 22 23 2 . . . . . . . Device 15 | . 13 14 11 10 10 8 8 10 3 7 6 18 22 21 25 29 19 10 Storage 6 | . 14 14 11 9 7 7 6 7 11 9 3 . . . 3 6 8 7 Processor 8 | . . . 11 9 4 . . 10 11 22 24 7 . . . 7 10 13 Hackware 11 | . . . . 8 7 7 23 12 11 6 6 19 23 21 21 8 6 15 Protection 5 | . . . . 4 13 20 11 3 10 . . 2 . . . . 9 1 Energy Gun 1 | . 8 . . . 7 3 . 3 4 . . . . . . . 1 3 Energy Cannon 3 | . . . . . . 11 10 1 . . 1 6 4 8 7 5 2 . Ballistic Gun 3 | . 19 28 21 17 7 . . . 1 5 2 . . . . . 1 2 Peak Build Rating 202 | . 12 27 29 36 55 56 69 81 93 96 96 119 129 128 146 166 202 172 Average Rating 102 | . 9 15 26 34 47 52 59 72 87 80 61 104 120 128 143 150 162 137 On Entrance 70 | 6 6 12 20 29 36 54 55 66 81 91 44 40 110 128 128 146 142 145 Naked Turns . | . . . . . . . . . . . . . . . . . . . Heaviest Build 273 | 11 17 17 32 35 45 60 60 56 57 111 39 96 108 98 116 199 273 201 Greatest Support 207 | 20 26 26 36 36 48 70 70 90 88 70 65 153 153 153 153 170 207 162 Greatest Overweight (x) 8 | . . 1 . . . 5 3 . 3 8 . 2 . . . 1 7 2 Average Overweight (x) . | . . . . . . . . . . . . . . . . . . . Largest Inventory Capacity 25 | . 8 8 15 15 15 15 15 15 15 25 5 5 5 5 5 25 25 25 Average Capacity 14 | . 8 8 12 15 15 15 15 15 15 7 5 5 5 5 5 15 25 23 Most Carried 25 | . 8 8 11 14 15 15 15 15 15 15 5 5 5 5 5 21 25 22 Average Carried 12 | . 7 7 8 12 14 13 14 13 14 6 3 4 4 5 5 9 22 17 Final Capacity 25 | 8 8 8 15 15 15 15 15 15 15 5 5 5 5 5 5 25 25 5 Final Carried 25 | 6 8 8 10 14 15 15 15 15 15 1 4 5 5 5 5 21 25 1 Class Distribution -------------------- 46% | Scavenger-Mutant 28% | Bothacker-Mutant 8% | Mutant 6% | Botlord-Mutant 3% | Scavenger-Skirmisher Dominant Class ---------------- Mutant | -10/Materials Mutant | -10/Mines Mutant | -9/Materials Scavenger-Mutant | -8/Materials Scavenger-Mutant | -7/Factory Scavenger-Mutant | -7/Garrison Scavenger-Mutant | -6/Factory Scavenger-Skirmisher | -5/Factory Scavenger-Mutant | -5/Garrison Scavenger-Mutant | -5/Factory Scavenger-Mutant | -4/Factory Bothacker-Mutant | -4/Garrison Bothacker-Mutant | -3/Research Bothacker-Mutant | -2/Research Bothacker-Mutant | -2/DSF Scavenger-Mutant | -1/Access Scavenger-Mutant | -1/Garrison Botlord-Mutant | -1/Access Resources | -11 -10 -10 -9 -8 -7 -7 -6 -5 -5 -5 -4 -4 -3 -2 -2 -1 -1 -1 ----------- Run | Yrd Mat Min Mat Mat Fac Gar Fac Fac Gar Fac Fac Gar Res Res DSF Acc Gar Acc Matter Collected 10840 | 200 39 204 202 396 662 350 588 227 378 1119 677 1141 92 . 318 1150 2303 794 Remotely 513 | . . . . . . . . . . . 513 . . . . . . . Salvage Created 14928 | . 229 . 215 435 1222 652 629 233 380 1327 617 1201 175 . 333 2721 3459 1100 Parts 597 | . 16 . 18 27 41 32 22 13 19 44 23 43 7 . 10 119 115 48 Haulers Intercepted 11 | . . . 1 1 2 . 2 . . . . . . . . 5 . . Recyclers Shooed 11 | . . . . 1 2 . 1 1 . 4 . . . . . 1 . 1 Parts Field Recycled . | . . . . . . . . . . . . . . . . . . . Retrieved Matter . | . . . . . . . . . . . . . . . . . . . Parts Self-Destructed . | . . . . . . . . . . . . . . . . . . . Prevented . | . . . . . . . . . . . . . . . . . . . Kills | -11 -10 -10 -9 -8 -7 -7 -6 -5 -5 -5 -4 -4 -3 -2 -2 -1 -1 -1 ------- Run | Yrd Mat Min Mat Mat Fac Gar Fac Fac Gar Fac Fac Gar Res Res DSF Acc Gar Acc Combat Hostiles Destroyed 220 | . 6 . 7 6 14 14 5 2 3 28 8 18 2 . 4 46 43 14 Melee 1 | . . . . . . . . . . . . . . . . . . 1 Guns 70 | . 6 . 7 5 11 6 . 1 . 8 3 . . . . . 12 11 Cannons 51 | . . . . . . 4 4 1 . 1 1 10 2 . 3 14 11 . AOE 76 | . . . . 1 1 2 1 . 3 19 4 3 . . 1 27 14 . Classes Destroyed 19 | . 4 . 1 3 3 2 1 . . . . 2 . . 1 1 1 . Worker 17 | . 1 . 1 2 6 . . . . 2 . . . . . 3 . 2 Builder 16 | . . . . 2 . . . . . 3 1 . . . . 9 . 1 Tunneler 1 | . . . . 1 . . . . . . . . . . . . . . Hauler 11 | . . . 1 1 2 . 2 . . . . . . . . 5 . . Recycler 10 | . . . . 1 4 . 1 1 . 3 . . . . . . . . Mechanic 4 | . . . . . . . 1 . . 1 2 . . . . . . . Operator 5 | . 1 . . 1 . . . 1 . 1 . . . . . . 1 . Watcher 3 | . . . . . . . . . . . . . . . . 2 . 1 Swarmer 37 | . 3 . 4 . . 2 . . . 3 . 4 . . . 10 11 . Grunt 90 | . 3 . 3 6 9 7 3 . 1 18 5 3 . . 1 16 12 3 Brawler 4 | . . . . . 1 . . . . . . 1 . . . . 1 1 Duelist 3 | . . . . . . . . . . 1 . 1 . . . . 1 . Sentry 19 | . . . . . 1 2 . 1 . 3 1 5 1 . . 1 4 . Demolisher 1 | . . . . . . . . . . . . . . . . . 1 . Specialist 3 | . . . . . . . . . . . . 1 1 . 1 . . . Hunter 25 | . . . . . . 2 . . . 1 2 . . . 1 11 6 2 Programmer 34 | . . . . . 3 1 2 1 2 2 . 2 . . . 8 5 8 Heavy 1 | . . . . . . . . . . . . . . . 1 . . . Behemoth 3 | . . . . . . . . . . . . 1 . . . . 2 . Butcher 1 | . . . . . . 1 . . . . . . . . . . . . Infiltrator 2 | . . . . . . . . . . . . 2 . . . . . . Best Kill Streak 21 | . 4 . 5 9 5 4 3 1 3 14 8 3 1 . 3 21 7 4 Combat Bots Only 16 | . 3 . 3 3 3 4 2 1 3 11 5 3 1 . 3 16 7 3 Max Kills in Single Turn 7 | . 2 . 2 2 1 1 2 1 3 5 7 4 1 . 1 5 5 1 Gunslinging 1 | . 1 . 1 . . . . . . . . . . . . . . . Exploded 4 | . . . . 1 1 1 1 . 3 3 4 3 . . 1 3 4 . Melee 1 | . . . . . . . . . . . . . . . . . . 1 Uniques/NPCs Destroyed . | . . . . . . . . . . . . . . . . . . . Combat | -11 -10 -10 -9 -8 -7 -7 -6 -5 -5 -5 -4 -4 -3 -2 -2 -1 -1 -1 -------- Run | Yrd Mat Min Mat Mat Fac Gar Fac Fac Gar Fac Fac Gar Res Res DSF Acc Gar Acc Hostile Shots Fired 2612 | . 28 . 17 36 176 161 106 20 21 220 160 218 22 . 30 267 750 380 Missed 878 | . 4 . 7 16 67 54 44 8 9 80 65 86 11 . 18 103 191 115 Deflected 15 | . . . . . . . . . . . . . . . . . . 15 Hits 1734 | . 24 . 10 20 109 107 62 12 12 140 95 132 11 . 12 164 559 265 Melee 15 | . . . . . . . . . . . 4 . . . . . 8 3 Projectile 1719 | . 24 . 10 20 109 107 62 12 12 140 91 132 11 . 12 164 551 262 AOE 8 | . . 1 . . 1 . . 2 . . . . . . . . 4 . Critical Strikes 84 | . . 1 . 3 7 3 2 1 2 6 7 6 . . . 6 22 18 Actively Blocked 2 | . . . . 1 1 . . . . . . . . . . . . . Part Disruptions 5 | . . . . . . . . . 1 . . . . . . . 1 3 Damage Taken 33534 | . 223 67 102 355 1464 1475 1254 640 325 2617 2088 2141 159 . 107 2099 12717 5701 Core 4015 | . 19 . 33 65 194 257 215 38 27 588 537 389 . . 32 141 998 482 Absorbed by Shields 2321 | . . . . . 49 . . . . . . 351 164 . 114 1149 494 . Reduced by Siege Mode 271 | . . . . . . . . . . . . . . . . 31 240 . Redirected to Shielding 551 | . . . . 82 130 120 108 . . . . . . . . 60 51 . Ignored by Resistances 1210 | . . . . . . . . . . 347 . 150 112 . 49 552 . . Regen/Repaired (Parts) 691 | . . . . 135 124 . . . . 55 . . . . . . 377 . Core Remaining (%) 73 | 100 . 92 91 88 . 35 74 . . 34 . 19 100 . 97 . . . Volleys Fired 956 | . 15 6 11 20 82 32 37 22 33 77 39 133 14 . 20 114 217 84 Largest 2 | . 2 2 2 2 2 2 2 2 2 2 2 2 1 . 2 2 2 2 Hottest 240 | . 60 46 46 56 112 196 196 196 113 83 157 218 113 . 120 240 240 188 Shots Fired 1415 | . 30 12 22 38 163 64 62 43 54 117 61 150 14 . 21 131 291 142 Gun 759 | . 30 12 22 33 163 37 . 19 22 81 47 . . . . . 159 134 Cannon 466 | . . . . . . 22 50 24 20 21 14 114 13 . 16 85 87 . Launcher 76 | . . . . 5 . 5 . . 1 15 . 1 1 . 2 32 14 . Special 114 | . . . . . . . 12 . 11 . . 35 . . 3 14 31 8 Kinetic 510 | . 21 12 22 33 68 . . 20 25 102 54 . . . . . 86 67 Thermal 703 | . . . . . 95 59 50 23 14 . 7 114 13 . 16 85 160 67 Explosive 76 | . . . . 5 . 5 . . 1 15 . 1 1 . 2 32 14 . Electromagnetic 12 | . 9 . . . . . . . 3 . . . . . . . . . Robot Hit Streak 42 | . 7 4 6 4 8 16 13 6 7 9 13 11 6 . 4 24 42 27 Robot Miss Streak 7 | . 4 4 2 7 5 3 4 2 3 5 3 3 3 . 3 3 2 2 Penetration Max 2 | . . . . . . . . . 1 1 1 . . . . . 2 1 Secondary Targets 13 | . 2 . 1 1 . 1 . . . 1 1 . . . . . 1 5 Max Gunslinging Chain 1 | . 1 . 1 1 . 1 . . . 1 1 . . . . . 1 1 Capacitor 162 | . . . . . . . . . . . . 66 13 . 16 67 . . Shots Hit Robots 1000 | . 19 9 18 24 117 41 39 24 34 78 41 91 9 . 12 97 239 108 Core Hits 640 | . 14 2 15 24 55 25 14 9 23 109 24 26 3 . 13 110 138 36 Critical Kills 28 | . . . . . . 1 1 1 5 4 1 7 . . . 4 4 . Critical Parts Destroyed 18 | . . . . . . . . 2 3 3 4 . . . . . 2 4 Critical Strikes 76 | . 1 . . . 5 1 1 4 9 11 5 7 . . . 4 17 11 Burn 24 | . . . . . 5 . . 1 1 . . . . . . . 10 7 Meltdown 15 | . . . . . . 1 1 . . . . 7 . . . 4 2 . Destroy 32 | . . . . . . . . 3 8 8 5 . . . . . 4 4 Blast 4 | . . . . . . . . . . 3 . . . . . . 1 . Corrupt 1 | . 1 . . . . . . . . . . . . . . . . . Melee Attacks . | . . . . . . . . . . . . . . . . . . . Impact . | . . . . . . . . . . . . . . . . . . . Slashing . | . . . . . . . . . . . . . . . . . . . Piercing . | . . . . . . . . . . . . . . . . . . . Sneak Attacks . | . . . . . . . . . . . . . . . . . . . Combat Hostiles . | . . . . . . . . . . . . . . . . . . . Follow-up Attacks . | . . . . . . . . . . . . . . . . . . . Damage Inflicted 45132 | . 232 125 280 946 2301 1501 1511 674 837 5342 1887 3047 352 . 972 11056 10843 3226 Guns 14667 | . 232 116 280 359 2164 571 . 291 203 1404 828 . . . . . 5187 3032 Cannons 13053 | . . . . . . 395 1086 269 357 556 235 2767 352 . 436 3681 2919 . Explosions 16919 | . . . . 587 137 535 314 114 277 3340 821 240 . . 536 7314 2704 . Melee . | . . . . . . . . . . . . . . . . . . . Ramming 493 | . . 9 . . . . 111 . . 42 3 40 . . . 61 33 194 Kinetic 9855 | . 165 116 280 359 831 . . 235 357 1960 899 . . . . . 3365 1288 Thermal 19694 | . . . . 113 1470 966 1400 439 188 412 985 2767 352 . 436 3681 4741 1744 Explosive 14967 | . . . . 474 . 535 . . 277 2928 . 240 . . 536 7273 2704 . Electromagnetic 123 | . 67 . . . . . . . 15 . . . . . . 41 . . Impact . | . . . . . . . . . . . . . . . . . . . Slashing . | . . . . . . . . . . . . . . . . . . . Piercing . | . . . . . . . . . . . . . . . . . . . Highest Corruption 44 | . . . . . 1 1 1 . . 8 14 29 . . . 9 19 44 Average Corruption 14 | . . . . . 1 1 1 . . 7 5 24 . . . 4 12 27 Corruption Purged . | . . . . . . . . . . . . . . . . . . . Corruption Blocked . | . . . . . . . . . . . . . . . . . . . Effects 324 | . . . . . . 6 3 . . 9 6 114 . . . 14 98 74 Message Errors 73 | . . . . . . 1 1 . . 2 2 34 . . . 2 17 14 Matter Fused 69 | . . . . . . 1 1 . . 4 . 23 . . . 1 25 14 Heat Flow Errors 39 | . . . . . . 1 1 . . 1 1 10 . . . 4 15 6 Energy Discharges 32 | . . . . . . 1 . . . 2 . 16 . . . 2 5 6 Parts Rejected 10 | . . . . . . . . . . . 1 4 . . . 1 2 2 Parts Fused 6 | . . . . . . . . . . . . . . . . . 5 1 Data Loss (minor) 33 | . . . . . . 2 . . . . 1 9 . . . 2 11 8 Data Loss (major) 19 | . . . . . . . . . . . . 7 . . . 1 7 4 Misfires 9 | . . . . . . . . . . . 1 2 . . . . 3 3 Alerts 7 | . . . . . . . . . . . . 2 . . . . 3 2 Misdirections 12 | . . . . . . . . . . . . 3 . . . . . 9 Weapon Failures 15 | . . . . . . . . . . . . 4 . . . 1 5 5 Overload Shots 4 | . . . . . . 4 . . . . . . . . . . . . Overflow Damage 1334 | . . . . 118 82 2 211 117 4 95 99 41 . . . 396 135 34 Projectiles 284 | . . . . . . 2 34 15 4 . . 37 . . . 159 33 . Explosions 1016 | . . . . 118 82 . 177 102 . 95 99 4 . . . 237 102 . Melee 34 | . . . . . . . . . . . . . . . . . . 34 Knockbacks 23 | . . . . . . . 1 4 1 4 . 1 . . . 1 9 2 Impact 6 | . . . . . . . 1 . . 1 . 1 . . . 1 . 2 Kinetic 14 | . . . . . . . . 4 1 3 . . . . . . 6 . Secondary 3 | . . . . . . . . . . . . . . . . . 3 . Self-Inflicted Damage 1121 | . . . . 33 69 . 188 250 78 195 . 22 . . 33 44 209 . Shots 29 | . . . . 1 1 . 3 3 3 8 . 1 . . 1 1 7 . Rammed 25 | . . . . . . . . . . 3 1 9 . . . 2 4 6 Targets Rammed 47 | . . 1 . . . . 18 . . 3 1 9 . . . 3 4 8 Kicked 20 | . . 1 . . . . 18 . . . . . . . . . . 1 Crushed 2 | . . . . . . . . . . . . . . . . 1 . 1 Highest Temperature 385 | . 40 . 1 24 385 234 277 78 150 142 240 300 304 . 96 196 215 333 Average Temperature 86 | . 13 . 1 9 142 90 82 56 61 18 51 89 125 . 38 98 98 105 Received Heat Transfer 4495 | . 48 . 21 216 542 252 231 42 72 834 457 224 12 . 8 205 971 360 Effects 4 | . . . . . 1 . . . . . . . . . . . . 3 Interference 2 | . . . . . . . . . . . . . . . . . . 2 Matter Decay 1 | . . . . . . . . . . . . . . . . . . 1 Damage (minor) 1 | . . . . . 1 . . . . . . . . . . . . . Siege Activations 4 | . . . . . . . . . . . . . . . . 1 3 . Total Turns 65 | . . . . . . . . . . . . . . . . 11 54 . Longest Duration 21 | . . . . . . . . . . . . . . . . 11 21 . Martial Activations . | . . . . . . . . . . . . . . . . . . . Shielding Activations 1 | . . . . . . . . . . . . . . . . . . 1 Total Turns 39 | . . . . . . . . . . . . . . . . . . 39 Longest Duration 39 | . . . . . . . . . . . . . . . . . . 39 Robots Disrupted . | . . . . . . . . . . . . . . . . . . . Combat Hostiles . | . . . . . . . . . . . . . . . . . . . Robots Corrupted 1 | . . . . . . . . . . . . . . . . . . 1 Combat Hostiles . | . . . . . . . . . . . . . . . . . . . Parts Fried 3 | . . . . . . . . . . . . . . . . . . 3 Impact Corruptions 3 | . . . . . . . . . . . . . . . . . . 3 Robots Melted 24 | . . . . . 2 2 1 . . . . 7 . . . 5 5 2 Combat Hostiles 22 | . . . . . 2 2 . . . . . 6 . . . 5 5 2 Parts Melted 65 | . . . . . 8 . 3 1 . . . 10 1 . 2 15 17 8 Heat Transferred 21281 | . . . . 50 3047 1564 1650 692 444 300 610 2438 333 . 407 2368 4825 2553 Parts Sabotaged . | . . . . . . . . . . . . . . . . . . . Parts Stolen . | . . . . . . . . . . . . . . . . . . . Parts Stripped . | . . . . . . . . . . . . . . . . . . . Power Chain Reactions . | . . . . . . . . . . . . . . . . . . . Alert | -11 -10 -10 -9 -8 -7 -7 -6 -5 -5 -5 -4 -4 -3 -2 -2 -1 -1 -1 ------- Run | Yrd Mat Min Mat Mat Fac Gar Fac Fac Gar Fac Fac Gar Res Res DSF Acc Gar Acc Maximum Alert Level 5 | . . . . 1 1 3 2 1 1 3 3 5 3 2 2 5 5 4 Low Security (%) 18 | . 100 100 100 51 74 . . 78 97 16 . . . . . . . . Level 1 12 | . . . . 48 25 15 98 21 2 2 . . . . 24 21 . . Level 2 18 | . . . . . . 60 1 . . 48 31 47 . 100 75 12 . . Level 3 13 | . . . . . . 24 . . . 33 68 21 100 . . 8 . . Level 4 22 | . . . . . . . . . . . . 23 . . . 40 36 100 Level 5 14 | . . . . . . . . . . . . 8 . . . 16 63 . High Security . | . . . . . . . . . . . . . . . . . . . Max Security . | . . . . . . . . . . . . . . . . . . . Sterilizations 1 | . . . . . . . . . . . . . . . 1 . . . Peak Influence 2384 | . 95 25 120 283 289 728 409 253 204 1002 900 1710 961 490 683 1652 2384 1468 Initial 1417 | . . 25 . 50 128 209 382 163 . 107 457 578 961 490 367 401 1288 1417 Average 886 | . 37 4 67 162 151 582 335 82 38 598 738 934 881 490 565 1073 1861 1332 Influence Increases 11151 | . 181 15 250 353 613 619 351 251 301 1326 779 1362 149 . 343 1929 1765 564 Destroy 0b10 Robot/C 4290 | . 120 . 140 120 280 280 140 40 80 420 180 510 45 . 120 840 690 285 Destroy 0b10 Robot/NC 359 | . 10 . 10 40 60 . 20 10 25 40 12 8 . . . 80 28 16 Destroy Leader 728 | . 30 . 32 12 74 10 14 20 16 96 48 24 16 . 16 182 64 74 Allied During Kill 719 | . . . . . . . 4 . 11 . 10 189 52 . 96 293 43 21 Successful Hack 106 | . 6 . 8 13 14 . . 8 14 7 30 6 . . . . . . Select Force Hacks 83 | . . . 30 30 . . . . . 23 . . . . . . . . Disable Machine 708 | . . . . 30 30 . 75 105 . 108 204 24 12 . 12 36 36 36 Anti-Garrison Action 1331 | . . . . . . 200 . . . . 113 453 . . . . 565 . Destroy Structure 1942 | . . . . 63 20 39 38 68 68 464 98 124 24 . 99 486 315 36 Partial Spotted 66 | . . . . . . 30 . . . 12 24 . . . . . . . Lose Combat Pursuer 819 | . 15 15 30 45 135 60 60 . 87 156 60 24 . . . 12 24 96 Influence Decreases 9864 | . 116 80 130 190 597 190 746 584 97 595 888 478 987 382 163 989 1012 1640 Entered New Map 4485 | . . 40 . 70 155 90 346 170 . 97 478 248 749 382 123 269 322 946 Time Decay 2952 | . 116 40 130 120 362 . 310 224 . 318 230 . 198 . . 470 . 434 Lost Part 1380 | . . . . . 70 100 50 40 . 180 140 70 . . . 110 380 240 Lost Ally 897 | . . . . . 10 . 40 . 97 . 40 160 40 . 40 140 310 20 Purge Threat 150 | . . . . . . . . 150 . . . . . . . . . . Squads Dispatched 65 | . 2 . 1 2 7 . 4 2 . 9 13 . 1 1 2 12 . 9 Investigation 21 | . 1 . 1 2 2 . . 1 . 5 4 . . 1 . 4 . . Extermination 11 | . . . . . 2 . . 1 . 1 1 . . . . 2 . 4 Reinforcement 19 | . 1 . . . 2 . 4 . . 3 1 . 1 . 2 3 . 2 Assault 6 | . . . . . . . . . . . 3 . . . . . . 3 Garrison 8 | . . . . . 1 . . . . . 4 . . . . 3 . . Intercept . | . . . . . . . . . . . . . . . . . . . Searches Triggered . | . . . . . . . . . . . . . . . . . . . Construction Impeded 8 | . . . . . . . 2 . . 2 . . . . . 2 . 2 Haulers Reinforced 4 | . . . . . 1 . 2 . . . . . . . . 1 . . Active Scanning Responses . | . . . . . . . . . . . . . . . . . . . Cargo Convoy Interrupts . | . . . . . . . . . . . . . . . . . . . Alert ID Control Effect 1 | . . . . . . . . . . . . . . . . . 1 . Stealth | -11 -10 -10 -9 -8 -7 -7 -6 -5 -5 -5 -4 -4 -3 -2 -2 -1 -1 -1 --------- Run | Yrd Mat Min Mat Mat Fac Gar Fac Fac Gar Fac Fac Gar Res Res DSF Acc Gar Acc Distress Signals 9 | . 1 . . 1 . . 1 . 1 1 . . . . . 3 . 1 Communications Jammed . | . . . . . . . . . . . . . . . . . . . Distress Signals . | . . . . . . . . . . . . . . . . . . . Times Spotted 450 | . 9 2 10 13 29 19 25 3 19 53 23 51 3 . 9 63 73 46 Peak Tracking Total 14 | . 4 2 3 3 9 7 6 1 12 14 6 8 4 . 3 13 12 8 Tactical Retreats 34 | . 1 1 2 1 3 3 3 . 3 5 4 2 . . . 1 2 3 Traps | -11 -10 -10 -9 -8 -7 -7 -6 -5 -5 -5 -4 -4 -3 -2 -2 -1 -1 -1 ------- Run | Yrd Mat Min Mat Mat Fac Gar Fac Fac Gar Fac Fac Gar Res Res DSF Acc Gar Acc Traps Triggered 15 | . 1 . . . . 1 . 2 1 . . 4 . . . . 5 1 Indirectly . | . . . . . . . . . . . . . . . . . . . Trap Hack Attempts . | . . . . . . . . . . . . . . . . . . . Triggered . | . . . . . . . . . . . . . . . . . . . Disarmed . | . . . . . . . . . . . . . . . . . . . Reprogrammed . | . . . . . . . . . . . . . . . . . . . Reused . | . . . . . . . . . . . . . . . . . . . Traps Extracted . | . . . . . . . . . . . . . . . . . . . Installed . | . . . . . . . . . . . . . . . . . . . Triggered . | . . . . . . . . . . . . . . . . . . . Objects Rigged 4 | . . . . 4 . . . . . . . . . . . . . . Exploded 1 | . . . . 1 . . . . . . . . . . . . . . Machines | -11 -10 -10 -9 -8 -7 -7 -6 -5 -5 -5 -4 -4 -3 -2 -2 -1 -1 -1 ---------- Run | Yrd Mat Min Mat Mat Fac Gar Fac Fac Gar Fac Fac Gar Res Res DSF Acc Gar Acc Machines Disabled 71 | . . . . 2 2 2 5 7 . 9 18 10 1 . 1 3 8 3 Max in Single Turn 8 | . . . . 1 2 1 4 4 . 3 8 1 1 . . 1 1 1 Garrison Access 1 | . . . . . . . . . . . 1 . . . . . . . Garrison Relay 11 | . . . . . . 2 . . . . . 4 . . . . 5 . Phase Generator 1 | . . . . . . . . . . . . 1 . . . . . . Energy Cycler 2 | . . . . . . . . . . . . . . . . 1 . 1 Machines Repaired . | . . . . . . . . . . . . . . . . . . . Machines Dismantled . | . . . . . . . . . . . . . . . . . . . Machines Sabotaged . | . . . . . . . . . . . . . . . . . . . Overloaded Fab Kills . | . . . . . . . . . . . . . . . . . . . Hacking | -11 -10 -10 -9 -8 -7 -7 -6 -5 -5 -5 -4 -4 -3 -2 -2 -1 -1 -1 --------- Run | Yrd Mat Min Mat Mat Fac Gar Fac Fac Gar Fac Fac Gar Res Res DSF Acc Gar Acc Machines Accessed 47 | . 2 . 3 4 7 1 . 4 1 6 6 3 2 1 . 7 . . Terminals 21 | . 1 . 2 2 1 1 . 1 1 3 2 3 . 1 . 3 . . Fabricators 5 | . . . . . 2 . . . . 1 . . 1 . . 1 . . Repair Stations 5 | . . . . 1 2 . . . . 1 . . . . . 1 . . Recycling Units 11 | . 1 . 1 1 1 . . 2 . 1 2 . 1 . . 1 . . Scanalyzers . | . . . . . . . . . . . . . . . . . . . Garrison Access 5 | . . . . . 1 . . 1 . . 2 . . . . 1 . . Total Hacks 117 | . 4 . 9 22 11 2 . 10 3 12 18 6 2 3 . 15 . . Successful 64 | . 4 . 6 13 7 1 . 7 1 8 12 1 1 1 . 2 . . Failed 53 | . . . 3 9 4 1 . 3 2 4 6 5 1 2 . 13 . . Catastrophic 11 | . . . . 1 1 . . 1 . 1 . 1 1 . . 5 . . Database Lockouts . | . . . . . . . . . . . . . . . . . . . Manual 41 | . 3 . 2 14 4 . . 1 . 7 5 . . . . 5 . . Terminals 64 | . 3 . 6 15 3 2 . 4 3 7 5 6 . 3 . 7 . . Fabricators 9 | . . . . . 3 . . . . 2 . . 1 . . 3 . . Repair Stations 8 | . . . . 3 2 . . . . 1 . . . . . 2 . . Recycling Units 25 | . 1 . 3 4 1 . . 5 . 2 6 . 1 . . 2 . . Scanalyzers . | . . . . . . . . . . . . . . . . . . . Garrison Access 11 | . . . . . 2 . . 1 . . 7 . . . . 1 . . Terminal Hacks 21 | . 1 . 3 4 1 1 . 2 1 2 3 1 . 1 . 1 . . Part Schematic 1 | . . . . . . . . . . . 1 . . . . . . . Robot Analysis 1 | . . . . 1 . . . . . . . . . . . . . . Prototype ID Bank 2 | . 1 . . 1 . . . . . . . . . . . . . . Open Door 2 | . . . . . . 1 . . . . . 1 . . . . . . Open DSF 1 | . . . . . . . . . . . . . . 1 . . . . Branch Access Points 1 | . . . . . . . . . . . 1 . . . . . . . Emergency Access Points 2 | . . . 1 . . . . . 1 . . . . . . . . . Terminal Index 1 | . . . . . . . . . . . 1 . . . . . . . Alert Level 4 | . . . 1 1 . . . . . 1 . . . . . 1 . . Unreport Threat 1 | . . . . . . . . 1 . . . . . . . . . . Locate Traps 2 | . . . . . 1 . . . . 1 . . . . . . . . Maintenance Status 1 | . . . . . . . . 1 . . . . . . . . . . Security Status 1 | . . . 1 . . . . . . . . . . . . . . . Patrol Status 1 | . . . . 1 . . . . . . . . . . . . . . Fabricator Hacks 3 | . . . . . 2 . . . . 1 . . . . . . . . Network Status 2 | . . . . . 1 . . . . 1 . . . . . . . . Build 1 | . . . . . 1 . . . . . . . . . . . . . Repair Station Hacks 2 | . . . . 2 . . . . . . . . . . . . . . Scan Component 1 | . . . . 1 . . . . . . . . . . . . . . Repair 1 | . . . . 1 . . . . . . . . . . . . . . Recycling Unit Hacks 15 | . 1 . 1 3 . . . 3 . 1 5 . 1 . . . . . Process 2 | . . . . 1 . . . . . . 1 . . . . . . . Report Inventory 9 | . 1 . 1 1 . . . 2 . 1 2 . 1 . . . . . Retrieve Matter 1 | . . . . 1 . . . . . . . . . . . . . . Retrieve Components 3 | . . . . . . . . 1 . . 2 . . . . . . . Scanalyzer . | . . . . . . . . . . . . . . . . . . . Garrison Access Hacks 5 | . . . . . 1 . . 1 . . 2 . . . . 1 . . Unlock Access 5 | . . . . . 1 . . 1 . . 2 . . . . 1 . . Unauthorized Hacks 18 | . 2 . 2 4 3 . . 1 . 4 2 . . . . . . . Terminals 8 | . 2 . 1 2 1 . . 1 . 1 . . . . . . . . Botnet 6 | . 1 . 1 1 1 . . 1 . 1 . . . . . . . . Detonate 1 | . . . . 1 . . . . . . . . . . . . . . Skim 1 | . 1 . . . . . . . . . . . . . . . . . Fabricators 1 | . . . . . . . . . . 1 . . . . . . . . Recompile 1 | . . . . . . . . . . 1 . . . . . . . . Repair Stations 4 | . . . . 1 2 . . . . 1 . . . . . . . . Patch 4 | . . . . 1 2 . . . . 1 . . . . . . . . Recycling Units 3 | . . . 1 1 . . . . . 1 . . . . . . . . Tunnel 3 | . . . 1 1 . . . . . 1 . . . . . . . . Scanalyzers . | . . . . . . . . . . . . . . . . . . . Garrison Access 2 | . . . . . . . . . . . 2 . . . . . . . Reprogram 1 | . . . . . . . . . . . 1 . . . . . . . Watchers 1 | . . . . . . . . . . . 1 . . . . . . . Data Cores Recovered . | . . . . . . . . . . . . . . . . . . . Used . | . . . . . . . . . . . . . . . . . . . Hacking Detections 38 | . 2 . 2 3 4 1 . 3 1 5 6 3 1 1 . 6 . . Full Trace Events 11 | . . . . . . . . 1 . 2 2 1 . 1 . 4 . . Feedback Events . | . . . . . . . . . . . . . . . . . . . Feedback Blocked . | . . . . . . . . . . . . . . . . . . . Robot Schematics Acquired . | . . . . . . . . . . . . . . . . . . . Robots Built . | . . . . . . . . . . . . . . . . . . . Authchips . | . . . . . . . . . . . . . . . . . . . Time . | . . . . . . . . . . . . . . . . . . . Total Robot Build Rating . | . . . . . . . . . . . . . . . . . . . Part Schematics Acquired 1 | . . . . . . . . . . . 1 . . . . . . . Parts Built 2 | . . . . . 2 . . . . . . . . . . . . . Authchips . | . . . . . . . . . . . . . . . . . . . Time 106 | . . . . . 106 . . . . . . . . . . . . . Total Part Build Rating 12 | . . . . . 12 . . . . . . . . . . . . . Parts Repaired 1 | . . . . 1 . . . . . . . . . . . . . . Time 38 | . . . . 38 . . . . . . . . . . . . . . Parts Recycled . | . . . . . . . . . . . . . . . . . . . Recycled Matter 262 | . . . . 262 . . . . . . . . . . . . . . Retrieved Matter 378 | . . . . 378 . . . . . . . . . . . . . . Retrieved Components 6 | . . . . . . . . 1 . . 5 . . . . . . . Parts Scanalyzed . | . . . . . . . . . . . . . . . . . . . Part Schematics Acquired . | . . . . . . . . . . . . . . . . . . . Parts Damaged . | . . . . . . . . . . . . . . . . . . . Bothacking | -11 -10 -10 -9 -8 -7 -7 -6 -5 -5 -5 -4 -4 -3 -2 -2 -1 -1 -1 ------------ Run | Yrd Mat Min Mat Mat Fac Gar Fac Fac Gar Fac Fac Gar Res Res DSF Acc Gar Acc Used RIF Installer 4 | . . . . . . 1 . . 1 . . 1 . . . . 1 . Threat Obfuscator 1 | . . . . . . . . . 1 . . . . . . . . . Alert ID Control 1 | . . . . . . . . . . . . . . . . . 1 . Structural Interface 1 | . . . . . . . . . . . . 1 . . . . . . Robots Hacked 70 | . . . . . . . 9 . 3 . . 18 . . 2 11 20 7 Non-combat 12 | . . . . . . . 5 . . . . . . . . 4 1 2 Combat 58 | . . . . . . . 4 . 3 . . 18 . . 2 7 19 5 Robot Hacks Applied 77 | . . . . . . . 11 . 3 . . 19 . . 2 12 23 7 parse_system 7 | . . . . . . . . . . . . 1 . . . 1 3 2 generate_echo 2 | . . . . . . . 1 . . . . . . . . . . 1 hold_bot 1 | . . . . . . . 1 . . . . . . . . . . . start_disposal 1 | . . . . . . . 1 . . . . . . . . . . . map_walls 1 | . . . . . . . 1 . . . . . . . . . . . map_earth 1 | . . . . . . . 1 . . . . . . . . . . . drop_inventory 3 | . . . . . . . . . . . . . . . . 2 . 1 ignore_parts 1 | . . . . . . . . . . . . . . . . 1 . . map_route 1 | . . . . . . . 1 . . . . . . . . . . . find_shortcuts 2 | . . . . . . . 1 . . . . . . . . 1 . . scatter_targeting 2 | . . . . . . . . . . . . . . . . . 2 . overload_power 1 | . . . . . . . . . . . . . . . . 1 . . amplify_resonance 10 | . . . . . . . 1 . . . . 4 . . . . 4 1 reboot_system 12 | . . . . . . . 1 . 1 . . 3 . . 1 3 3 . overwrite_iff 8 | . . . . . . . 1 . . . . 3 . . . . 3 1 formatsys_low 1 | . . . . . . . . . . . . . . . . . 1 . formatsys_high 23 | . . . . . . . 1 . 2 . . 8 . . 1 3 7 1 Relay Couplers Released 46 | . . . . . . 11 . . . . 1 17 . . . . 17 . Machine Destruction 43 | . . . . . . 8 . . . . 1 17 . . . . 17 . Programmers 3 | . . . . . . 3 . . . . . . . . . . . . Attached 31 | . . . . . . . 4 . 1 1 . 13 . . . . 12 . Fabnet Peak Effective % . | . . . . . . . . . . . . . . . . . . . Robots Rewired 17 | . . . . . 1 . . . 4 . . 5 . . . . 7 . Allies Hacked 1 | . . . . . . . . . . . . . . . . 1 . . Hacks Repelled . | . . . . . . . . . . . . . . . . . . . Allies | -11 -10 -10 -9 -8 -7 -7 -6 -5 -5 -5 -4 -4 -3 -2 -2 -1 -1 -1 -------- Run | Yrd Mat Min Mat Mat Fac Gar Fac Fac Gar Fac Fac Gar Res Res DSF Acc Gar Acc Total Allies 55 | . . . . . 1 1 2 . 6 . 2 19 . . 1 3 18 2 Largest Group 8 | . . . . . 1 1 2 . 5 . 2 8 8 6 6 7 4 1 Highest-Rated Group 401 | . . . . . 40 20 41 . 94 . 112 400 400 301 301 401 218 183 Highest-Rated Ally 183 | . . . . . 40 20 41 . 49 . 56 148 56 56 69 69 69 183 Total Orders 1 | . . . . . . . . . . . . . . . . . 1 . AID 1 | . . . . . . . . . . . . . . . . . 1 . Ally Attacks 359 | . . . . . . . 8 . 40 . 16 81 11 . 45 90 48 20 Total Damage 11871 | . . . . . . . 152 . 748 . 1106 3174 357 . 1419 2301 1340 1274 Kills 50 | . . . . . . . 2 . 3 . 4 16 1 . 4 11 4 5 Allies Corrupted 4 | . . . . . . . . . . . . 1 . . . . 3 . Allies Melted 2 | . . . . . . . . . . . . 2 . . . . . . Intel | -11 -10 -10 -9 -8 -7 -7 -6 -5 -5 -5 -4 -4 -3 -2 -2 -1 -1 -1 ------- Run | Yrd Mat Min Mat Mat Fac Gar Fac Fac Gar Fac Fac Gar Res Res DSF Acc Gar Acc Active Infowar (turns) 5440 | . 257 261 288 245 493 . . 522 361 719 346 . . . . 376 603 969 Optics 3013 | . . . . . . . . 464 361 719 346 . . . . 376 454 293 Sensors 1642 | . . 2 . . . . . 522 126 175 . . . . . . . 817 A.S.S. 2 | . . . . . . . . . . . . . . . . . . 2 Terrain 1651 | . 256 259 288 245 493 . . . . . . . . . . 39 71 . Structural 1 | . 1 . . . . . . . . . . . . . . . . . T.N.C. 149 | . . . . . . . . . . . . . . . . . 149 . Cloaking 370 | . . . . . . . . . . . . . . . . . . 370 Robot Analysis Total 1 | . . . . 1 . . . . . . . . . . . . . . Derelict Logs Recovered 1 | . . 1 . . . . . . . . . . . . . . . . Drone Launches . | . . . . . . . . . . . . . . . . . . . Drone Recoveries . | . . . . . . . . . . . . . . . . . . . Exploration | -11 -10 -10 -9 -8 -7 -7 -6 -5 -5 -5 -4 -4 -3 -2 -2 -1 -1 -1 ------------- Run | Yrd Mat Min Mat Mat Fac Gar Fac Fac Gar Fac Fac Gar Res Res DSF Acc Gar Acc Turns Passed 12998 | . 265 261 288 245 823 812 683 523 361 719 482 2245 416 9 188 1191 2420 1067 Spaces Moved 7308 | 1 164 243 305 182 629 566 378 347 265 546 422 1205 233 6 69 502 749 496 Core 138 | . . . . . . . . . . 1 84 . . . . . . 53 Treads 2704 | . . . . . . 2 . . . 32 5 1000 233 6 69 502 748 107 Legs 1892 | 1 164 77 . . . 428 378 347 19 . 126 87 . . . . 1 264 Wheels . | . . . . . . . . . . . . . . . . . . . Hover 2293 | . . 166 292 182 629 136 . . 246 513 122 7 . . . . . . Flight 281 | . . . 13 . . . . . . . 85 111 . . . . . 72 Fastest Speed 34 | 120 120 77 34 74 71 71 120 120 68 59 40 40 163 163 163 151 151 37 Average Speed 126 | 120 120 90 72 74 71 113 136 120 73 76 77 152 163 163 163 179 208 148 Slowest Speed 705 | 120 120 150 77 74 71 470 330 120 290 450 170 260 163 163 163 243 705 250 Overloaded Moves . | . . . . . . . . . . . . . . . . . . . Propulsion Burnouts . | . . . . . . . . . . . . . . . . . . . Robots Hopped 2 | . . . . . . . . . . . 1 . . . . . . 1 Potential Cave-ins . | . . . . . . . . . . . . . . . . . . . Cave-ins Triggered . | . . . . . . . . . . . . . . . . . . . Exploration Rate (%) 34 | 2 38 66 26 27 20 52 10 9 39 15 15 96 7 . 86 15 76 15 Regions Visited 18 Branch Regions 1 Pre-discovered Areas 4 | . . 1 1 1 . . . . . 1 . . . . . . . . Known Exits Taken 6 | . . . . . 1 . . 1 . 1 1 . . 1 . 1 . . Unknown Exits Taken 7 | 1 1 1 1 1 . . 1 . . . . . 1 . . . . . Scrap Searched 1 | . . 1 . . . . . . . . . . . . . . . . Spaces Dug . | . . . . . . . . . . . . . . . . . . . Terrain Destroyed 1109 | . . . . 77 25 24 49 54 35 305 22 86 21 . 36 220 140 15 Melee . | . . . . . . . . . . . . . . . . . . . Projectile 149 | . . . . . . 3 18 6 2 61 6 13 4 . 5 15 14 2 AOE 953 | . . . . 77 25 21 31 48 33 244 15 73 17 . 31 205 120 13 Terrain Rammed . | . . . . . . . . . . . . . . . . . . . Walls Destroyed . | . . . . . . . . . . . . . . . . . . . Machines Disabled . | . . . . . . . . . . . . . . . . . . . Actions | -11 -10 -10 -9 -8 -7 -7 -6 -5 -5 -5 -4 -4 -3 -2 -2 -1 -1 -1 --------- Run | Yrd Mat Min Mat Mat Fac Gar Fac Fac Gar Fac Fac Gar Res Res DSF Acc Gar Acc Total 9774 | . 209 271 350 251 839 678 485 404 382 720 513 1537 268 5 141 716 1335 670 Wait 432 | . 2 9 . 38 74 12 9 13 48 47 1 44 5 . 30 15 73 12 Move 7290 | . 163 242 304 181 629 565 377 347 264 545 420 1204 232 5 68 502 748 494 Hop 2 | . . . . . . . . . . . 1 . . . . . . 1 Pick Up 148 | . 8 3 7 4 15 16 9 5 3 8 9 9 1 . . 14 33 4 Fast Attach 181 | . 1 2 1 3 6 5 7 10 7 8 17 28 2 . 2 21 38 23 Attach 114 | . . . 6 1 5 10 5 5 4 8 8 10 3 . . 2 37 10 Detach 72 | . . . 5 1 . 4 2 . 1 4 6 11 3 . . 4 20 11 Swap 220 | . 9 2 10 3 15 13 11 2 10 11 2 28 5 . 14 31 43 11 Drop 176 | . 11 5 6 . 11 16 9 . 11 9 9 19 3 . 7 10 40 10 Fire 956 | . 15 6 11 20 82 32 37 22 33 77 39 133 14 . 20 114 217 84 Melee . | . . . . . . . . . . . . . . . . . . . Ram 5 | . . . . . . . . . . 3 . . . . . . . 2 Kick 20 | . . 1 . . . . 18 . . . . . . . . . . 1 Crush 24 | . . . . . . . . . . . 1 9 . . . 3 4 7 Escape Stasis 8 | . . . . . . 5 . . . . . 1 . . . . 2 . Rewire 126 | . . 1 . . 2 . 1 . 1 . . 41 . . . . 80 . Trap . | . . . . . . . . . . . . . . . . . . . Miscellaneous . | . . . . . . . . . . . . . . . . . . . Route ------- -11/Scrapyard -10/Materials -10/Mines -9/Materials -8/Materials -7/Factory -7/Garrison (discovered 2 exits: [*Fac x2]) -6/Factory -5/Factory -5/Garrison -5/Factory -4/Factory (discovered 3 exits: Upp x2 / Gar) -4/Garrison (discovered 3 exits: *Res x3) -3/Research -2/Research -2/DSF -1/Access -1/Garrison (discovered 2 exits: [*Acc x2]) -1/Access History --------- Turn | Location | Event 1 | -11/Scrapyard | Discovered new exit (range 0) 1 | -11/Scrapyard | Entered Materials 127 | -10/Materials | Discovered new exit (range 15) 266 | -10/Materials | Entered Mines 305 | -10/Mines | Build established: Mutant 313 | -10/Mines | Assembled infested the area 338 | -10/Mines | Met 8R-AWN 442 | -10/Mines | Found a damaged Exp. Sensor Array with a note attached 444 | -10/Mines | Found Prototype Device 444 | -10/Mines | Identified Exp. Sensor Array 510 | -10/Mines | Discovered new exit (range 9) 520 | -10/Mines | Learned location of Zion (-7) 527 | -10/Mines | Entered Materials 527 | -9/Materials | Evolved 2 slots: Propulsion x1, Utility x1 672 | -9/Materials | Discovered new exit (range 16) 815 | -9/Materials | Entered another Materials area 815 | -8/Materials | Evolved 2 slots: Utility x2 996 | -8/Materials | Repaired Imp. Weapon Shielding 1036 | -8/Materials | Build established: Scavenger-Mutant 1053 | -8/Materials | Discovered new exit (range 11) 1060 | -8/Materials | Entered Factory 1060 | -7/Factory | Evolved 2 slots: Propulsion x1, Utility x1 1333 | -7/Factory | Fabricated Adv. Plasma Cannon (x2) 1448 | -7/Factory | Garrison activated, responded to threat 1773 | -7/Factory | Lost 3 parts (2u1w) 1883 | -7/Factory | Identified exit to Garrison 1883 | -7/Factory | Entered Garrison 1883 | -7/Garrison | Warlord forces raided the area 1895 | -7/Garrison | Triggered checkpoint 1915 | -7/Garrison | Garrison Relay disabled 2035 | -7/Garrison | Triggered checkpoint 2037 | -7/Garrison | Triggered checkpoint 2059 | -7/Garrison | Core integrity fell below 50% 2115 | -7/Garrison | Lost 9 parts (1p5n3u) 2184 | -7/Garrison | Warlord forces retreated 2489 | -7/Garrison | Triggered checkpoint 2498 | -7/Garrison | Garrison Relay disabled 2528 | -7/Garrison | Discovered new exit (range 12) 2579 | -7/Garrison | Installed Relay Interface Framework 2659 | -7/Garrison | Discovered new exit (range 9) 2675 | -7/Garrison | Rescued a captive Derelict 2695 | -7/Garrison | Entered Factory 2695 | -6/Factory | Accompanied by 1 ally 2695 | -6/Factory | Evolved 2 slots: Utility x2 2830 | -6/Factory | Discovered new exit (range 10) 3023 | -6/Factory | Found Prototype Launcher 3023 | -6/Factory | Identified Scatter Rocket Array 3378 | -6/Factory | Entered another Factory area 3378 | -5/Factory | Evolved 2 slots: Propulsion x1, Utility x1 3455 | -5/Factory | Lost 3 parts (2u1w) 3901 | -5/Factory | Identified exit to Garrison 3901 | -5/Factory | Entered Garrison 4103 | -5/Garrison | Spotted Executioner 4106 | -5/Garrison | Spotted Executioner 4181 | -5/Garrison | Spotted B-75 Beast 4184 | -5/Garrison | Triggered checkpoint 4185 | -5/Garrison | Triggered checkpoint 4215 | -5/Garrison | Expanded RIF knowledge: Threat Obfuscation 4226 | -5/Garrison | Lost 5 allies 4237 | -5/Garrison | Discovered new exit (range 16) 4260 | -5/Garrison | Identified exit to Factory 4262 | -5/Garrison | Entered Factory 4422 | -5/Factory | Destroyed 7 combat bots 4748 | -5/Factory | Discovered new exit (range 19) 4777 | -5/Factory | Identified exit to Factory 4782 | -5/Factory | Destroyed 11 combat bots 4843 | -5/Factory | Lost 9 parts (1p3n2u3w) 4865 | -5/Factory | Core integrity fell below 50% 4981 | -5/Factory | Entered another Factory area 4981 | -4/Factory | Evolved 2 slots: Power x1, Utility x1 5006 | -4/Factory | Lost 3 parts (1p2n) 5017 | -4/Factory | Identified exit to Garrison 5198 | -4/Factory | Identified exit to Upper Caves 5231 | -4/Factory | First assault squad dispatched 5249 | -4/Factory | Garrison activated, responded to threat 5287 | -4/Factory | Lost 4 parts (1p2n1u) 5325 | -4/Factory | System corruption reached 10% 5358 | -4/Factory | Lost 7 parts (2n3u2w) 5463 | -4/Factory | Identified exit to Garrison 5463 | -4/Factory | Entered Garrison 5503 | -4/Garrison | Core integrity fell below 50% 5547 | -4/Garrison | Rewired B-86 Titan 5548 | -4/Garrison | Rewired B-90 Cyclops 5549 | -4/Garrison | Spotted B-90 Cyclops 5568 | -4/Garrison | Lost 3 parts (1n2u) 5571 | -4/Garrison | Allies destroyed B-90 Cyclops 5617 | -4/Garrison | Lost 4 allies 6038 | -4/Garrison | Garrison Relay disabled 6041 | -4/Garrison | Triggered checkpoint 6168 | -4/Garrison | Spotted B-86 Titan 6174 | -4/Garrison | Triggered checkpoint 6273 | -4/Garrison | Found Quantum Capacitor 6341 | -4/Garrison | Build established: Bothacker-Mutant 6369 | -4/Garrison | Destroyed B-86 Titan 6497 | -4/Garrison | Garrison Relay disabled 6599 | -4/Garrison | Triggered checkpoint 6607 | -4/Garrison | Triggered checkpoint 6641 | -4/Garrison | Triggered checkpoint 6718 | -4/Garrison | Found embedded Infiltrators 6861 | -4/Garrison | Triggered checkpoint 6884 | -4/Garrison | Discovered new exit (range 14) 6999 | -4/Garrison | Phase Generator disabled 7042 | -4/Garrison | Triggered checkpoint 7123 | -4/Garrison | Triggered checkpoint 7141 | -4/Garrison | Rescued a captive Derelict 7189 | -4/Garrison | Discovered new exit (range 13) 7304 | -4/Garrison | Triggered checkpoint 7307 | -4/Garrison | Garrison Relay disabled 7369 | -4/Garrison | Triggered checkpoint 7429 | -4/Garrison | Expanded RIF knowledge: Structural Interface 7475 | -4/Garrison | Triggered checkpoint 7477 | -4/Garrison | Core integrity fell below 20% 7517 | -4/Garrison | Garrison Relay disabled 7631 | -4/Garrison | Discovered new exit (range 14) 7708 | -4/Garrison | Entered Research 7708 | -3/Research | Accompanied by 8 allies 7708 | -3/Research | Evolved 2 slots: Power x1, Utility x1 8074 | -3/Research | Discovered new exit (range 13) 8124 | -3/Research | Entered another Research area 8124 | -2/Research | Accompanied by 6 allies 8124 | -2/Research | Evolved 2 slots: Utility x2 8133 | -2/Research | Identified exit to DSF 8133 | -2/Research | Entered DSF 8133 | -2/DSF | Accompanied by 6 allies 8178 | -2/DSF | Additional patrols routed to DSF 8261 | -2/DSF | Discovered new exit (range 13) 8284 | -2/DSF | Sterilization system engaged 8304 | -2/DSF | Ambient heat levels rising (+10) 8319 | -2/DSF | Ambient heat levels rising (+10) 8321 | -2/DSF | Entered Access 8321 | -1/Access | Accompanied by 5 allies 8321 | -1/Access | Evolved 2 slots: Utility x2 8651 | -1/Access | Energy Cycler disabled 8734 | -1/Access | Garrison activated, responded to threat 8747 | -1/Access | Build established: Scavenger-Mutant 8769 | -1/Access | Destroyed 7 combat bots 8769 | -1/Access | Found Prototype Launcher 8769 | -1/Access | Identified Com. Tesla Bomb Launcher 8849 | -1/Access | Lost 4 allies 8863 | -1/Access | Destroyed 8 combat bots 8985 | -1/Access | Destroyed 16 combat bots 8990 | -1/Access | Lost 5 parts (2p3u) 9349 | -1/Access | Lost 5 parts (5u) 9512 | -1/Access | Identified exit to Garrison 9512 | -1/Access | Entered Garrison 9540 | -1/Garrison | Found Adv. Powered Armor 9555 | -1/Garrison | Found Adv. Powered Armor 9559 | -1/Garrison | Found Adv. Powered Armor 9564 | -1/Garrison | System corruption reached 10% 9580 | -1/Garrison | Spotted B-99 Colossus 9580 | -1/Garrison | Found Adv. Powered Armor 9587 | -1/Garrison | Found Adv. Powered Armor 9591 | -1/Garrison | Found Adv. Powered Armor 9599 | -1/Garrison | Destroyed B-99 Colossus 9641 | -1/Garrison | Found Relay Coupler [Proto] 9644 | -1/Garrison | Found Relay Coupler [Proto] 9648 | -1/Garrison | Found Relay Coupler [Proto] 9651 | -1/Garrison | Found Relay Coupler [Proto] 9908 | -1/Garrison | Garrison Relay disabled 9950 | -1/Garrison | Triggered checkpoint 10051 | -1/Garrison | QS Assembler disabled 10336 | -1/Garrison | Spotted B-99 Colossus 10340 | -1/Garrison | Triggered checkpoint 10356 | -1/Garrison | Destroyed B-99 Colossus 10441 | -1/Garrison | Found Prototype Ballistic Gun 10441 | -1/Garrison | Identified Multirail 10498 | -1/Garrison | Lost 13 parts (2p2n6u3w) 10504 | -1/Garrison | Triggered checkpoint 10576 | -1/Garrison | Triggered checkpoint 10809 | -1/Garrison | Garrison Relay disabled 10871 | -1/Garrison | Discovered new exit (range 12) 10984 | -1/Garrison | Destroyed 7 combat bots 10989 | -1/Garrison | Lost 3 parts (2n1w) 11096 | -1/Garrison | Garrison Relay disabled 11273 | -1/Garrison | Discovered new exit (range 10) 11351 | -1/Garrison | Lost 9 allies 11354 | -1/Garrison | Core integrity fell below 50% 11397 | -1/Garrison | Lost 7 parts (1p1n5u) 11542 | -1/Garrison | Triggered checkpoint 11626 | -1/Garrison | Garrison Relay disabled 11640 | -1/Garrison | Lost 8 parts (2p2n4u) 11646 | -1/Garrison | Build established: Bothacker-Mutant 11708 | -1/Garrison | Triggered checkpoint 11713 | -1/Garrison | Garrison Relay disabled 11767 | -1/Garrison | Expanded RIF knowledge: Alert ID Control 11913 | -1/Garrison | Lost 5 allies 11932 | -1/Garrison | Entered Access 11939 | -1/Access | Energy Cycler disabled 12051 | -1/Access | Lost 6 parts (1p2n2u1w) 12279 | -1/Access | Lost 5 parts (1p1n2u1w) 12287 | -1/Access | Core integrity fell below 20% 12432 | -1/Access | First assault squad dispatched 12585 | -1/Access | Build established: Botlord-Mutant 12755 | -1/Access | Allied Derelicts emerged from ambush trap array 12802 | -1/Access | System corruption reached 30% 12865 | -1/Access | Lost 4 allies 12921 | -1/Access | Lost 4 parts (1n1u2w) 12953 | -1/Access | Found Prototype Device 12953 | -1/Access | Identified Active Sensor Suite 12986 | -1/Access | Spotted B-99 Colossus 12999 | -1/Access | Destroyed by Y-72 Warden with Railgun Last Messages --------------- 12965_ Impulse Thruster destroyed. 12965_ Dropped Mic. Antimatter Reactor. 12967_ Adv. Heat Sink destroyed. 12970_ Impulse Thruster destroyed. 12971_ System corrupted: Matter fused (-6). 12971_ Dropped Imp. Cloaking Device. 12978_ Adv. Heat Sink destroyed. 12988_ System corrupted: Component data lost. 12990_ K-01 Serf destroyed. 12992_ U-05 Engineer destroyed. 12992_ Penetrated by Slug. 12992_ Slug penetrates Wall. 12992_ Penetrated by Slug. 12992_ Slug penetrates Wall. 12992_ Critical hit (Destroy). 12992_ Arm. Heavy Treads destroyed. 12995_ B-99 Colossus activates siege mode. 12995_ Penetrated by Slug. 12995_ Slug penetrates Wall. 12996_ Acquired 1 matter. Map ----- +----------------------------------------------------+ | ?????????????????????????????????????????????????? | | ?????????????????????????????????????????????????? | | ?????????????????????????????????????????????????? | | ?????????????????????????????????????????????????? | | ?????????????????????????????????????????????????? | | ?????????????????????????????????????????????????? | | ?????????????????????????????????????????????????? | | ?????????????????????????????????????????????????? | | ?????????????????????????????????????????????????? | | ?????????????????????????????????????????????????? | | ?????????????????????????????????????????????????? | | ?????????????????????????????????????????????????? | | ?????????????????????????????????????????????????? | | ?????????????????????????????????????????????????? | | ?????????????????????????????????????????????????? | | ?????????????????????????????????????????????????? | | ?????????????????????????????????????????????????? | | ?????????????##??????????????????????????????????? | | ???#+##+###### ############??????????????????????? | | ???+ # % +??????????????????????? | | ???# # Y #??????????????????????? | | ???# # #??????????????????????? | | ???# # * #??????????????????????? | | ???? # "" #??????????????????????? | | ???### " """ +??????????????????????? | | ???# " "F @#??????????????????????? | | ???# # """ #??????????????????????? | | ????#" # """ #??????????????????????? | | ????#" * # """ = #??????????????????????? | | ?????# =% / s #??????????????????????? | | ?????# ! # #??????????????????????? | | ?????# !!##############??????????????????????? | | ?????# *%########????????????????????????????? | | ?????# != #????????????????????????????? | | !????# % #????????????????????????????? | | ????# #????????????????????????????? | | ????# +????????????????????????????? | | ????# #????????????????????????????? | | ????# #????????????????????????????? | | ????# #????????????????????????????? | | ????# ####?????????????????????????? | | ????# ???????????????????????? | | ###### ???????????????????????? | | ???????????????????????? | | === ???????????????????????? | | === #####????????????????????????? | | === #????????????????????????????? | | #????????????????????????????? | | #????????????????????????????? | | #????????????????????????????? | +----------------------------------------------------+ Best States ------------- Heat Dissipation 178 Coolant Potential 100 Energy Generation 65 Energy Capacity 1650 Matter Stores 500 Matter Capacity 500 Sight Range 22 Robot Scan Range 20 Terrain Scan Range 16 Terrain Scan Density 210 Cloak Strength 3 Power Amplification 30 Additional Mass Support 12 Corruption Containment 12 Corruption Block 8 Armor Coverage 4000 Resistance: KI 30 Resistance: TH 30 Resistance: EM 20 Core Shielding 30 Propulsion Shielding 66 Weapon Shielding 66 Phase Shifting 15 Evasion (%) 63 Targeting Accuracy 24 Launcher Accuracy 20 Target Analysis 12 Armor Integrity Analysis 30 Recoil Reduction 5 Particle Charging 30 Kinecelleration 40 Offensive Hacking 22 Relay Coupler Types 5 Relay Coupler Value 183 Authchip Count 1 Item Schematics ----------------- Biometal Leg | -4/Factory | Hacked Robot Schematics ------------------ None Fabricated ------------ Adv. Plasma Cannon | x2 | -7/Factory | Preloaded Repaired ---------- Imp. Weapon Shielding | 18% | -8/Materials Alien Tech Used ----------------- None Achievements -------------- None Challenges ------------ None Game ------ Seed RapidArmorThrower Manual? 0 Play Time 01:52:36 Cumulative 1172.1 hours Start 2025.08.20 @ 12:24:33 End 2025.08.20 @ 14:18:07 Sessions 1 Manual Loads 0 Difficulty Rogue Special Mode None Game No. 1439 Rogue 1155 Adventurer 124 Explorer 160 Win Type - Total 53 Types 39/0/8/4/1/0/0/1/0/0 Lore% 92 Gallery% 88 Achievement% 81 Wizard Run 0 Options --------- Layout 0 ASCII 0 Keyboard 1 Movement Numpad Keybinds 0 Fullscreen 2 Font 18/X11 Map View 76x50 Zoom Use 0% Tactical HUD 1 Map Filters NONE Filters NONE Steam 1 RUN: 82283607-7ee9-4a9d-a371-1f61eec415ca